fUSD/lending_fUSD_20240319
["ID","MTS","AMOUNT","RATE_DAILY","PERIOD"]
[319606318,1710885198183,-260.46806727,0.00035068,5]
[319606319,1710885198192,-832.3,0.00035068,5]
[319606320,1710885198202,-3259.21,0.00035068,5]
[319606321,1710885198210,-516.5,0.00035068,5]
[319606322,1710885198220,-500.0,0.00035068,5]
[319606323,1710885198229,-500.0,0.00035068,5]
[319606324,1710885198239,-750.69,0.00035068,5]
[319606325,1710885198248,-6099.55,0.00035068,5]
[319606326,1710885198258,-500.0,0.00035068,5]
[319606327,1710885198267,-705.53,0.00035068,5]
[319606328,1710885198277,-510.82,0.00035068,5]
[319606329,1710885198287,-583.59,0.00035068,5]
[319606330,1710885198297,-554.14,0.00035068,5]
[319606331,1710885198307,-1769.12,0.00035068,5]
[319606332,1710885198317,-1054.91,0.00035068,5]
[319606333,1710885198326,-758.11,0.00035068,5]
[319606334,1710885198439,-500.0,0.00035068,5]
[319606335,1710885198449,-614.47,0.00035068,5]
[319606336,1710885198458,-500.0,0.00035068,5]
[319606337,1710885198468,-565.83,0.00035068,5]
[319606338,1710885198480,-3031.48,0.00035068,5]
[319606339,1710885198491,-1813.36,0.00035068,5]
[319606340,1710885198500,-1793.05,0.00035068,5]
[319606341,1710885198510,-1781.25,0.00035068,5]
[319606342,1710885198520,-5948.25,0.00035068,5]
[319606343,1710885198529,-721.19,0.00035068,5]
[319606344,1710885198539,-2298.94,0.00035068,5]
[319606345,1710885198548,-500.0,0.00035068,5]
[319606346,1710885198557,-1467.68,0.00035068,5]
[319606347,1710885198567,-2048.3,0.00035068,5]
[319606348,1710885198577,-740.6,0.00035068,5]
[319606349,1710885198587,-3725.64,0.00035068,5]
[319606350,1710885198596,-7446.28,0.00035068,5]
[319606351,1710885198606,-1639.61,0.00035068,5]
[319606352,1710885198616,-1176.01,0.00035068,5]
[319606353,1710885198626,-814.35,0.00035068,5]
[319606354,1710885198635,-1904.86,0.00035068,5]
[319606355,1710885198645,-531.89,0.00035068,5]
[319606356,1710885198655,-541.15,0.00035068,5]
[319606357,1710885198665,-505.23,0.00035068,5]
[319606358,1710885198675,-1726.69,0.00035068,5]
[319606359,1710885198685,-706.92,0.00035068,5]
[319606360,1710885198694,-1397.11,0.00035068,5]
[319606361,1710885198704,-644.74,0.00035068,5]
[319606362,1710885198713,-723.57,0.00035068,5]
[319606363,1710885198722,-2864.27,0.00035068,5]
[319606364,1710885198731,-2584.9,0.00035068,5]
[319606365,1710885198741,-564.16953937,0.00035068,5]
[319606366,1710885198750,-6961.76,0.00035068,5]
[319606367,1710885198759,-500.0,0.00035068,5]
[319606368,1710885198769,-915.89,0.00035068,5]
[319606369,1710885198779,-1043.19,0.00035068,5]
[319606370,1710885198788,-1045.63,0.00035068,5]
[319606371,1710885198797,-1312.85,0.00035068,5]
[319606372,1710885198806,-3736.86,0.00035068,5]
[319606373,1710885198815,-961.87,0.00035068,5]
[319606374,1710885198825,-1764.05,0.00035068,5]
[319606375,1710885198834,-838.02,0.00035068,5]
[319606376,1710885198843,-500.0,0.00035068,5]
[319606377,1710885198853,-1302.7,0.00035068,5]
[319606378,1710885198862,-2820.33,0.00035068,5]
[319606379,1710885198871,-500.0,0.00035068,5]
[319606380,1710885198880,-2171.52,0.00035068,5]
[319606381,1710885198889,-4792.93,0.00035068,5]
[319606382,1710885198898,-2181.61,0.00035068,5]
[319606383,1710885198908,-500.0,0.00035068,5]
[319606384,1710885198918,-1199.36,0.00035068,5]
[319606385,1710885198929,-501.95,0.00035068,5]
[319606386,1710885198938,-1621.75,0.00035068,5]
[319606387,1710885198948,-589.7,0.00035068,5]
[319606388,1710885198957,-855.86,0.00035068,5]
[319606389,1710885198966,-585.37929382,0.00035068,5]
[319606390,1710885198976,-3227.64,0.00035068,5]
[319606391,1710885198985,-863.41,0.00035068,5]
[319606392,1710885198994,-2111.52,0.00035068,5]
[319606393,1710885199004,-2950.43,0.00035068,5]
[319606394,1710885199014,-226.09920829,0.00035068,5]
[319606395,1710885199023,-5122.72,0.00035068,5]
[319606396,1710885199033,-824.14,0.00035068,5]
[319606397,1710885199042,-500.0,0.00035068,5]
[319606398,1710885199051,-10026.4,0.00035068,5]
[319606399,1710885199060,-557.77918775,0.00035068,5]
[319606400,1710885199070,-565.71,0.00035068,5]
[319606401,1710885199080,-1033.05,0.00035068,5]
[319606402,1710885199089,-2275.12,0.00035068,5]
[319606403,1710885199098,-504.07,0.00035068,5]
[319606404,1710885199107,-500.0,0.00035068,5]
[319606405,1710885199116,-126732.2,0.00035068,5]
[319606406,1710885199126,-4852.56,0.00035068,5]
[319606407,1710885199135,-2937.74,0.00035068,5]
[319606408,1710885199144,-1976.68,0.00035068,5]
[319606409,1710885199154,-777.71,0.00035068,5]
[319606410,1710885199163,-1133.54,0.00035068,5]
[319606411,1710885199172,-2119.46,0.00035068,5]
[319606412,1710885199184,-500.0,0.00035068,5]
[319606413,1710885199194,-7711.4,0.00035068,5]
[319606414,1710885199203,-524.36,0.00035068,5]
[319606415,1710885199212,-7310.51,0.00035068,5]
[319606416,1710885199221,-500.0,0.00035068,5]
[319606417,1710885199230,-14442.37,0.00035068,5]
[319606418,1710885199239,-500.0,0.00035068,5]
[319606419,1710885199249,-589.32826115,0.00035068,5]
[319606420,1710885199258,-5376.56,0.00035068,5]
[319606421,1710885199267,-582.24,0.00035068,5]
[319606422,1710885199277,-4230.03,0.00035068,5]
[319606423,1710885199286,-751.89,0.00035068,5]
[319606424,1710885199296,-542.91,0.00035068,5]
[319606425,1710885199306,-1949.45,0.00035068,5]
[319606426,1710885199316,-5623.75,0.00035068,5]
[319606427,1710885199326,-1033.59,0.00035068,2]
[319606428,1710885199336,-825.5,0.00035068,5]
[319606429,1710885199345,-5877.04,0.00035068,5]
[319606430,1710885199355,-521.04,0.00035068,5]
[319606431,1710885199364,-503.31,0.00035068,5]
[319606432,1710885199374,-636.0,0.00035068,5]
[319606433,1710885199385,-3068.4,0.00035068,5]
[319606434,1710885199394,-2857.27,0.00035068,5]
[319606435,1710885199404,-500.0,0.00035068,5]
[319606436,1710885199414,-631.3,0.00035068,5]
[319606437,1710885199423,-2550.99,0.00035068,5]
[319606438,1710885199434,-1149.73,0.00035068,5]
[319606439,1710885199443,-814.62,0.00035068,5]
[319606440,1710885199453,-7487.75,0.00035068,5]
[319606441,1710885199462,-1638.18,0.00035068,5]
[319606442,1710885199472,-7814.4,0.00035068,5]
[319606443,1710885199486,-529.96,0.00035068,5]
[319606444,1710885199496,-594.04,0.00035068,5]
[319606445,1710885199506,-705.8,0.00035068,5]
[319606446,1710885199516,-500.0,0.00035068,5]
[319606447,1710885199526,-3016.27,0.00035068,5]
[319606448,1710885199535,-303.7899301,0.00035068,5]
[319606449,1710885199544,-38480.53,0.00035068,5]
[319606450,1710885199553,-767.81,0.00035068,5]
[319606451,1710885199563,-968.19,0.00035068,5]
[319606452,1710885199573,-2988.01,0.00035068,5]
[319606453,1710885199582,-3358.0,0.00035068,5]
[319606454,1710885199591,-500.0,0.00035068,5]
[319606455,1710885199601,-2995.65,0.00035068,5]
[319606456,1710885199610,-2879.31,0.00035068,5]
[319606457,1710885199620,-3475.26,0.00035068,5]
[319606458,1710885199629,-817.64,0.00035068,5]
[319606459,1710885199638,-626.59,0.00035068,5]
[319606460,1710885199647,-1532.23,0.00035068,5]
[319606461,1710885199656,-1675.59,0.00035068,5]
[319606462,1710885199665,-1109.08,0.00035068,5]
[319606463,1710885199675,-1175.56,0.00035068,5]
[319606464,1710885199685,-1008.18,0.00035068,5]
[319606465,1710885199695,-2383.57,0.00035068,5]
[319606466,1710885199704,-1104.88,0.00035068,5]
[319606467,1710885199714,-6551.95,0.00035068,5]
[319606468,1710885199724,-20378.39,0.00035068,5]
[319606469,1710885199734,-3428.01,0.00035068,5]
[319606470,1710885199743,-724.41,0.00035068,5]
[319606471,1710885199753,-4023.07,0.00035068,5]
[319606472,1710885199763,-2691.76,0.00035068,5]
[319606473,1710885199772,-500.0,0.00035068,5]
[319606474,1710885199782,-518.98,0.00035068,5]
[319606475,1710885199792,-532.04,0.00035068,5]
[319606476,1710885199801,-3655.41,0.00035068,5]
[319606477,1710885199810,-3100.4,0.00035068,5]
[319606478,1710885199819,-1495.58,0.00035068,5]
[319606479,1710885199828,-5255.9,0.00035068,5]
[319606480,1710885199837,-532.61,0.00035068,5]
[319606481,1710885199847,-646.23,0.00035068,5]
[319606482,1710885199856,-500.0,0.00035068,5]
[319606483,1710885199865,-856.3,0.00035068,5]
[319606484,1710885199874,-1919.76,0.00035068,5]
[319606485,1710885199883,-2848.19,0.00035068,5]
[319606486,1710885199892,-514.35,0.00035068,5]
[319606487,1710885199901,-84885.72,0.00035068,5]
[319606488,1710885199909,-917.99,0.00035068,5]
[319606489,1710885199918,-7528.25,0.00035068,5]
[319606490,1710885199929,-2075.6,0.00035068,5]
[319606491,1710885199938,-556.06,0.00035068,5]
[319606492,1710885199948,-500.0,0.00035068,5]
[319606493,1710885199957,-4053.66,0.00035068,5]
[319606494,1710885199966,-950.92,0.00035068,5]
[319606495,1710885199975,-1498.56,0.00035068,5]
[319606496,1710885199984,-6114.82,0.00035068,5]
[319606497,1710885199993,-1068.02,0.00035068,5]
[319606498,1710885200003,-1140.75,0.00035068,5]
[319606499,1710885200012,-1363.9,0.00035068,5]
[319606500,1710885200021,-680.37,0.00035068,5]
[319606501,1710885200030,-7331.78,0.00035068,5]
[319606502,1710885200040,-6608.67,0.00035068,5]
[319606503,1710885200049,-5255.76,0.00035068,5]
[319606504,1710885200058,-1065.89,0.00035068,5]
[319606505,1710885200068,-2244.41,0.00035068,5]
[319606506,1710885200077,-12679.11,0.00035068,5]
[319606507,1710885200087,-501.67,0.00035068,5]
[319606508,1710885200096,-500.0,0.00035068,5]
[319606509,1710885200105,-1134.2,0.00035068,5]
[319606510,1710885200115,-535.13,0.00035068,5]
[319606511,1710885200123,-500.0,0.00035068,5]
[319606512,1710885200132,-952.29,0.00035068,5]
[319606513,1710885200141,-16057.66,0.00035068,5]
[319606514,1710885200150,-5689.03,0.00035068,5]
[319606515,1710885200159,-9318.38,0.00035068,5]
[319606516,1710885200168,-4026.73,0.00035068,5]
[319606517,1710885200179,-6799.03,0.00035068,5]
[319606518,1710885200188,-661.71,0.00035068,5]
[319606519,1710885200198,-3035.5,0.00035068,5]
[319606520,1710885200208,-3750.07,0.00035068,5]
[319606521,1710885200218,-935.16,0.00035068,5]
[319606522,1710885200227,-6185.77,0.00035068,5]
[319606523,1710885200238,-1750.15,0.00035068,5]
[319606524,1710885200247,-507.49,0.00035068,5]
[319606525,1710885200257,-21984.05,0.00035068,5]
[319606526,1710885200267,-500.0,0.00035068,5]
[319606527,1710885200277,-1656.75,0.00035068,5]
[319606528,1710885200286,-682.19,0.00035068,5]
[319606529,1710885200296,-3232.39,0.00035068,5]
[319606530,1710885200306,-4012.77,0.00035068,5]
[319606531,1710885200316,-5906.29,0.00035068,5]
[319606532,1710885200325,-2644.39,0.00035068,5]
[319606533,1710885200335,-1898.34,0.00035068,5]
[319606534,1710885200345,-860.9,0.00035068,5]
[319606535,1710885200355,-2450.74,0.00035068,5]
[319606536,1710885200364,-6356.12,0.00035068,5]
[319606537,1710885200374,-741.49,0.00035068,5]
[319606538,1710885200383,-988.62,0.00035068,5]
[319606539,1710885200394,-502.93,0.00035068,5]
[319606540,1710885200403,-3281.78,0.00035068,5]
[319606541,1710885200414,-10393.93,0.00035068,5]
[319606542,1710885200423,-887.69,0.00035068,5]
[319606543,1710885200433,-2054.31,0.00035068,5]
[319606544,1710885200443,-1073.2,0.00035068,5]
[319606545,1710885200452,-5676.82,0.00035068,5]
[319606546,1710885200462,-500.0,0.00035068,5]
[319606547,1710885200472,-500.0,0.00035068,5]
[319606548,1710885200481,-2928.09,0.00035068,5]
[319606549,1710885200494,-2336.1,0.00035068,5]
[319606550,1710885200504,-784.81,0.00035068,5]
[319606551,1710885200513,-958.78,0.00035068,5]
[319606552,1710885200523,-12462.52,0.00035068,5]
[319606553,1710885200534,-5305.03,0.00035068,5]
[319606554,1710885200544,-742.85,0.00035068,5]
[319606555,1710885200553,-3248.64,0.00035068,5]
[319606556,1710885200564,-500.0,0.00035068,5]
[319606557,1710885200573,-8000.71,0.00035068,5]
[319606558,1710885200583,-7424.85,0.00035068,5]
[319606559,1710885200592,-6273.21,0.00035068,5]
[319606560,1710885200602,-9028.78,0.00035068,5]
[319606561,1710885200611,-7152.27,0.00035068,5]
[319606562,1710885200621,-603.25,0.00035068,5]
[319606563,1710885200630,-920.58,0.00035068,5]
[319606564,1710885200639,-11402.88,0.00035068,5]
[319606565,1710885200649,-862.02,0.00035068,5]
[319606566,1710885200659,-5180.59,0.00035068,5]
[319606567,1710885200668,-1058.28,0.00035068,5]
[319606568,1710885200678,-6676.62,0.00035068,5]
[319606569,1710885200688,-50748.97,0.00035068,5]
[319606570,1710885200697,-12563.76,0.00035068,5]
[319606571,1710885200706,-4392.06,0.00035068,5]
[319606572,1710885200715,-947.45,0.00035068,5]
[319606573,1710885200725,-994.47,0.00035068,5]
[319606574,1710885200734,-6289.47,0.00035068,5]
[319606575,1710885200743,-1127.56,0.00035068,5]
[319606576,1710885200753,-500.0,0.00035068,5]
[319606577,1710885200763,-1554.32,0.00035068,5]
[319606578,1710885200772,-1563.9,0.00035068,5]
[319606579,1710885200782,-2538.59,0.00035068,5]
[319606580,1710885200791,-9279.39,0.00035068,5]
[319606581,1710885200800,-2973.35,0.00035068,5]
[319606582,1710885200810,-1071.73,0.00035068,5]
[319606583,1710885200818,-1557.91,0.00035068,5]
[319606584,1710885200828,-921.84,0.00035068,5]
[319606585,1710885200837,-1497.67,0.00035068,5]
[319606586,1710885200847,-5460.3,0.00035068,5]
[319606587,1710885200856,-549.68,0.00035068,5]
[319606588,1710885200865,-500.0,0.00035068,5]
[319606589,1710885200875,-866.95,0.00035068,5]
[319606590,1710885200884,-500.0,0.00035068,5]
[319606591,1710885200894,-23885.26,0.00035068,5]
[319606592,1710885200903,-2241.19,0.00035068,5]
[319606593,1710885200913,-34338.3,0.00035068,5]
[319606594,1710885200923,-6038.59,0.00035068,5]
[319606595,1710885200933,-870.15,0.00035068,5]
[319606596,1710885200942,-1003.35,0.00035068,5]
[319606597,1710885200953,-5378.59,0.00035068,5]
[319606598,1710885200963,-615.59,0.00035068,5]
[319606599,1710885200973,-5507.6,0.00035068,5]
[319606600,1710885200982,-500.0,0.00035068,5]
[319606601,1710885200992,-681.39,0.00035068,5]
[319606602,1710885201001,-3623.08,0.00035068,5]
[319606603,1710885201010,-659.74,0.00035068,5]
[319606604,1710885201020,-500.0,0.00035068,5]
[319606605,1710885201029,-1648.34,0.00035068,5]
[319606606,1710885201038,-7204.29,0.00035068,5]
[319606607,1710885201048,-976.18,0.00035068,5]
[319606608,1710885201057,-1912.73,0.00035068,5]
[319606609,1710885201066,-3082.4,0.00035068,5]
[319606610,1710885201076,-2522.27,0.00035068,5]
[319606611,1710885201086,-6424.1,0.00035068,5]
[319606612,1710885201095,-1570.96,0.00035068,5]
[319606613,1710885201105,-5688.06,0.00035068,5]
[319606614,1710885201115,-2703.38,0.00035068,5]
[319606615,1710885201124,-1409.47,0.00035068,5]
[319606616,1710885201133,-10351.23,0.00035068,5]
[319606617,1710885201143,-723.42,0.00035068,5]
[319606618,1710885201153,-19207.21,0.00035068,5]
[319606619,1710885201163,-3910.17,0.00035068,5]
[319606620,1710885201173,-500.0,0.00035068,5]
[319606621,1710885201182,-3159.85,0.00035068,5]
[319606622,1710885201191,-989.66,0.00035068,5]
[319606623,1710885201201,-1575.99,0.00035068,5]
[319606624,1710885201211,-2518.49,0.00035068,5]
[319606625,1710885201220,-602.98,0.00035068,5]
[319606626,1710885201230,-2902.62,0.00035068,5]
[319606627,1710885201241,-1081.46,0.00035068,5]
[319606628,1710885201250,-996.99,0.00035068,5]
[319606629,1710885201260,-11316.17,0.00035068,5]
[319606630,1710885201269,-21059.27,0.00035068,5]
[319606631,1710885201279,-722.94,0.00035068,5]
[319606632,1710885201288,-1144.28,0.00035068,5]
[319606633,1710885201298,-3248.34,0.00035068,5]
[319606634,1710885201308,-500.0,0.00035068,5]
[319606635,1710885201318,-592.77,0.00035068,5]
[319606636,1710885201327,-611.45,0.00035068,5]
[319606637,1710885201336,-1214.02,0.00035068,5]
[319606638,1710885201346,-5044.94,0.00035068,5]
[319606639,1710885201356,-500.0,0.00035068,5]
[319606640,1710885201366,-856.7,0.00035068,5]
[319606641,1710885201376,-6225.21,0.00035068,5]
[319606642,1710885201386,-608.72,0.00035068,5]
[319606643,1710885201395,-1511.11,0.00035068,5]
[319606644,1710885201405,-1279.36,0.00035068,5]
[319606645,1710885201416,-8737.55,0.00035068,5]
[319606646,1710885201426,-11752.03,0.00035068,5]
[319606647,1710885201436,-4482.5,0.00035068,5]
[319606648,1710885201445,-1788.46,0.00035068,5]
[319606649,1710885201455,-5316.22,0.00035068,5]
[319606650,1710885201464,-1321.67,0.00035068,5]
[319606651,1710885201474,-1177.76,0.00035068,5]
[319606652,1710885201486,-518.08,0.00035068,5]
[319606653,1710885201497,-505.75,0.00035068,5]
[319606654,1710885201507,-1429.54,0.00035068,5]
[319606655,1710885201517,-2886.03,0.00035068,5]
[319606656,1710885201527,-500.0,0.00035068,5]
[319606657,1710885201536,-3473.42,0.00035068,5]
[319606658,1710885201546,-20562.17,0.00035068,5]
[319606659,1710885201555,-22991.35,0.00035068,5]
[319606660,1710885201565,-4026.93,0.00035068,5]
[319606661,1710885201575,-805.12,0.00035068,5]
[319606662,1710885201584,-981.11,0.00035068,5]
[319606663,1710885201594,-877.4,0.00035068,5]
[319606664,1710885201604,-1121.88,0.00035068,5]
[319606665,1710885201613,-12965.17,0.00035068,5]
[319606666,1710885201623,-836.09,0.00035068,5]
[319606667,1710885201633,-8047.18,0.00035068,5]
[319606668,1710885201643,-4640.74,0.00035068,5]
[319606669,1710885201653,-6661.58,0.00035068,5]
[319606670,1710885201662,-720.32,0.00035068,5]
[319606671,1710885201672,-500.0,0.00035068,5]
[319606672,1710885201682,-3306.12,0.00035068,5]
[319606673,1710885201692,-1406.25,0.00035068,5]
[319606674,1710885201701,-603.58,0.00035068,5]
[319606675,1710885201711,-1438.11,0.00035068,5]
[319606676,1710885201721,-6333.98,0.00035068,5]
[319606677,1710885201731,-2692.37,0.00035068,5]
[319606678,1710885201740,-26854.72,0.00035068,5]
[319606679,1710885201750,-614.48,0.00035068,5]
[319606680,1710885201759,-2847.31,0.00035068,5]
[319606681,1710885201769,-1298.71,0.00035068,5]
[319606682,1710885201778,-500.0,0.00035068,5]
[319606683,1710885201788,-1953.31,0.00035068,5]
[319606684,1710885201798,-521.8,0.00035068,5]
[319606685,1710885201808,-972.96,0.00035068,5]
[319606686,1710885201818,-500.0,0.00035068,5]
[319606687,1710885201828,-599.79,0.00035068,5]
[319606688,1710885201838,-1902.54,0.00035068,5]
[319606689,1710885201847,-673.97,0.00035068,5]
[319606690,1710885201856,-649.62,0.00035068,5]
[319606691,1710885201865,-26670.31,0.00035068,5]
[319606692,1710885201874,-5843.77,0.00035068,5]
[319606693,1710885201884,-691.9,0.00035068,5]
[319606694,1710885201893,-1828.95,0.00035068,5]
[319606695,1710885201902,-1109.32,0.00035068,5]
[319606696,1710885201912,-1199.84,0.00035068,5]
[319606697,1710885201921,-180335.79632142,0.00035082,2]
[319606698,1710885201931,-150.0,0.00035114,2]
[319606699,1710885201940,-350.86767464,0.00035258,4]
[319606700,1710885201949,-1000.0,0.00035267,2]
[319606701,1710885201958,-1041.1,0.00035342,5]
[319606702,1710885201968,-905.92,0.00035342,5]
[319606703,1710885201977,-760.8,0.00035342,5]
[319606704,1710885201988,-918.16,0.00035342,5]
[319606705,1710885201997,-1354.5,0.00035342,5]
[319606706,1710885202007,-153.5476866,0.00035342,5]
[319606707,1710885202017,-563.69,0.00035342,5]
[319606708,1710885202027,-553.29,0.00035342,5]
[319606709,1710885202037,-576.34,0.00035342,5]
[319606710,1710885202047,-628.41,0.00035342,5]
[319606711,1710885202057,-500.0,0.00035342,5]
[319606712,1710885202066,-620.13,0.00035342,5]
[319606713,1710885202076,-786.01,0.00035342,5]
[319606714,1710885202085,-865.28,0.00035342,5]
[319606715,1710885202095,-964.89,0.00035342,5]
[319606716,1710885202105,-564.61,0.00035342,5]
[319606717,1710885202115,-177.61355566,0.00035342,5]
[319606718,1710885202124,-529.43,0.00035342,5]
[319606719,1710885202133,-618.58,0.00035342,5]
[319606720,1710885202143,-563.52,0.00035342,5]
[319606721,1710885202152,-2015.12,0.00035342,5]
[319606722,1710885202162,-631.9,0.00035342,5]
[319606723,1710885202171,-681.13,0.00035342,5]
[319606724,1710885202180,-1086.99,0.00035342,5]
[319606725,1710885202190,-652.31,0.00035342,5]
[319606726,1710885202199,-500.0,0.00035342,5]
[319606727,1710885202209,-1320.6,0.00035342,5]
[319606728,1710885202219,-1250.92,0.00035342,5]
[319606729,1710885202229,-1120.04,0.00035342,5]
[319606730,1710885202239,-500.0,0.00035342,5]
[319606731,1710885202249,-510.25,0.00035342,5]
[319606732,1710885202258,-921.3,0.00035342,5]
[319606733,1710885202268,-1041.72,0.00035342,5]
[319606734,1710885202277,-1043.25,0.00035342,5]
[319606735,1710885202287,-535.44,0.00035342,5]
[319606736,1710885202297,-500.0,0.00035342,5]
[319606737,1710885202307,-500.0,0.00035342,5]
[319606738,1710885202317,-626.57194444,0.00035342,5]
[319606739,1710885202327,-957.02,0.00035342,5]
[319606740,1710885202337,-549.6,0.00035342,5]
[319606741,1710885202347,-546.14,0.00035342,5]
[319606742,1710885202357,-983.01,0.00035342,5]
[319606743,1710885202367,-583.52,0.00035342,5]
[319606744,1710885202377,-502.25,0.00035342,5]
[319606745,1710885202387,-701.32,0.00035342,5]
[319606746,1710885202397,-845.97,0.00035342,5]
[319606747,1710885202407,-604.6,0.00035342,5]
[319606748,1710885202418,-626.44,0.00035342,5]
[319606749,1710885202430,-594.50038615,0.00035342,5]
[319606750,1710885202440,-1296.65,0.00035342,5]
[319606751,1710885202449,-1134.53,0.00035342,5]
[319606752,1710885202460,-507.2,0.00035342,5]
[319606753,1710885202470,-783.57,0.00035342,5]
[319606754,1710885202481,-1022.89,0.00035342,5]
[319606755,1710885202495,-668.88,0.00035342,5]
[319606756,1710885202505,-597.77,0.00035342,5]
[319606757,1710885202514,-500.0,0.00035342,5]
[319606758,1710885202525,-1317.95,0.00035342,5]
[319606759,1710885202535,-1578.12,0.00035342,5]
[319606760,1710885202545,-500.06,0.00035342,5]
[319606761,1710885202555,-706.81,0.00035342,5]
[319606762,1710885202566,-820.72,0.00035342,5]
[319606763,1710885202576,-511.35,0.00035342,5]
[319606764,1710885202586,-1159.47,0.00035342,5]
[319606765,1710885202596,-752.64,0.00035342,5]
[319606766,1710885202605,-1433.6,0.00035342,5]
[319606767,1710885202615,-500.0,0.00035342,5]
[319606768,1710885202625,-500.0,0.00035342,5]
[319606769,1710885202635,-1189.27,0.00035342,5]
[319606770,1710885202644,-500.0,0.00035342,5]
[319606771,1710885202654,-572.14,0.00035342,5]
[319606772,1710885202664,-1127.91,0.00035342,5]
[319606773,1710885202673,-729.46,0.00035342,5]
[319606774,1710885202683,-500.0,0.00035342,5]
[319606775,1710885202693,-1199.62,0.00035342,5]
[319606776,1710885202703,-562.99,0.00035342,5]
[319606777,1710885202712,-786.3,0.00035342,5]
[319606778,1710885202722,-500.0,0.00035342,5]
[319606779,1710885202732,-1265.95,0.00035342,5]
[319606780,1710885202742,-580.29,0.00035342,5]
[319606781,1710885202751,-500.0,0.00035342,5]
[319606782,1710885202761,-718.68,0.00035342,5]
[319606783,1710885202770,-2136.15,0.00035342,5]
[319606784,1710885202779,-928.05,0.00035342,5]
[319606785,1710885202788,-500.0,0.00035342,5]
[319606786,1710885202798,-783.9,0.00035342,5]
[319606787,1710885202808,-1320.02,0.00035342,5]
[319606788,1710885202817,-1043.02,0.00035342,5]
[319606789,1710885202827,-802.08,0.00035342,5]
[319606790,1710885202837,-1028.49,0.00035342,5]
[319606791,1710885202846,-1179.51,0.00035342,5]
[319606792,1710885202856,-812.3,0.00035342,5]
[319606793,1710885202865,-1146.04,0.00035342,5]
[319606794,1710885202875,-1045.71,0.00035342,5]
[319606795,1710885202884,-530.67,0.00035342,5]
[319606796,1710885202894,-649.64,0.00035342,5]
[319606797,1710885202904,-511.91460972,0.00035342,5]
[319606798,1710885202914,-500.0,0.00035342,5]
[319606799,1710885202924,-775.28,0.00035342,5]
[319606800,1710885202934,-897.58,0.00035342,5]
[319606801,1710885202943,-1675.73,0.00035342,5]
[319606802,1710885202953,-500.0,0.00035342,5]
[319606803,1710885202962,-500.0,0.00035342,5]
[319606804,1710885202972,-937.79,0.00035342,5]
[319606805,1710885202982,-734.15,0.00035342,5]
[319606806,1710885202991,-530.51,0.00035342,5]
[319606807,1710885203001,-1431.93,0.00035342,5]
[319606808,1710885203011,-1508.78,0.00035342,5]
[319606809,1710885203021,-500.0,0.00035342,5]
[319606810,1710885203031,-500.0,0.00035342,5]
[319606811,1710885203040,-3024.0,0.00035342,5]
[319606812,1710885203050,-571.47,0.00035342,5]
[319606813,1710885203059,-621.71,0.00035342,5]
[319606814,1710885203069,-762.86,0.00035342,5]
[319606815,1710885203079,-538.79,0.00035342,5]
[319606816,1710885203089,-985.89,0.00035342,5]
[319606817,1710885203099,-1947.91,0.00035342,5]